fUST/lending_fUST_20260107
["ID","MTS","AMOUNT","RATE_DAILY","PERIOD"]
[400556144,1767715210757,187.0,0.00028193,120]
[400556145,1767715212175,187.0,0.00029603,120]
[400556183,1767715507346,-166.66666668,0.00010095,2]
[400556184,1767715507370,-7.79961024,0.00010095,2]
[400556185,1767715513183,160.0,0.00028195,120]
[400556186,1767715514693,160.0,0.00029605,120]
[400556191,1767715578888,154.92,7.246e-05,2]
[400556192,1767715579320,174.28,7.505e-05,2]
[400556197,1767715627914,-553.20038976,0.00010095,2]
[400556198,1767715627939,-45.46136634,0.0001012,2]
[400556200,1767715657389,-264.53742163,0.00010019,2]
[400556201,1767715662296,-308.82176541,0.00010019,2]
[400556202,1767715677470,1594.99,0.00030137,120]
[400556203,1767715715816,151.95,7.441e-05,2]
[400556204,1767715716238,170.94,7.706e-05,2]
[400556206,1767715763982,1019.0,0.00030136,120]
[400556209,1767715792268,-25.30256906,0.00010019,2]
[400556210,1767715792290,-199.53656031,0.0001007,2]
[400556211,1767715792311,-175.46128172,0.00010189,15]
[400556213,1767715811158,162.0,0.00028586,120]
[400556214,1767715813046,162.0,0.00030016,120]
[400556242,1767715831982,-273.35918704,0.00011567,2]
[400556244,1767715831992,-583.0,0.00011567,2]
[400556246,1767715832002,-1925.73574096,0.00011684,2]
[400556304,1767715838201,-1268.95881124,0.00011684,2]
[400556306,1767715838211,-235.45314116,0.0001207,2]
[400556308,1767715838221,-800.0,0.00012353,2]
[400556310,1767715838231,-217.78752848,0.00012354,2]
[400556312,1767715838243,-3441.97363625,0.00012354,2]
[400556314,1767715838252,-300.0,0.00013171,2]
[400556316,1767715838263,-4391.73476734,0.00013172,2]
[400556318,1767715838276,-545.51634452,0.00013172,2]
[400556320,1767715838285,-186.98575797,0.00013172,2]
[400556322,1767715838294,-1000000.0,0.00013173,2]
[400556324,1767715838304,-17687.30391503,0.00013272,2]
[400556326,1767715838313,-207.17737896,0.00013272,2]
[400556328,1767715838323,-500.0,0.00013272,2]
[400556330,1767715838332,-500.0,0.00013272,2]
[400556332,1767715838342,-500.0,0.00013272,2]
[400556334,1767715838353,-500.0,0.00013272,2]
[400556336,1767715838363,-500.0,0.00013272,2]
[400556338,1767715838372,-500.0,0.00013272,2]
[400556340,1767715838382,-508.96801212,0.00013272,2]
[400556342,1767715838393,-364.39783555,0.00013272,2]
[400556344,1767715838403,-373.97081417,0.00013272,2]
[400556346,1767715838412,-500.0,0.00013272,2]
[400556348,1767715838421,-500.0,0.00013273,2]
[400556350,1767715838431,-497.04994014,0.00013273,2]
[400556352,1767715838440,-166.66666666,0.00013598,2]
[400556354,1767715838449,-465.02200056,0.00013698,2]
[400556356,1767715838458,-500.0,0.00013698,2]
[400556358,1767715838467,-382.8339174,0.00013698,2]
[400556360,1767715838477,-1000.0,0.00013698,2]
[400556362,1767715838487,-1000.0,0.00013698,2]
[400556364,1767715838496,-1000.0,0.00013698,2]
[400556366,1767715838506,-1000.0,0.00013698,2]
[400556368,1767715838515,-1000.0,0.00013698,2]
[400556370,1767715838524,-1015.00844165,0.00013698,2]
[400556372,1767715838534,-728.94,0.00013698,2]
[400556374,1767715838543,-728.94,0.00013698,2]
[400556376,1767715838552,-728.94,0.00013698,2]
[400556378,1767715838562,-728.94,0.00013698,2]
[400556380,1767715838571,-728.94,0.00013698,2]
[400556382,1767715838581,-728.94,0.00013698,2]
[400556384,1767715838590,-728.94,0.00013698,2]
[400556386,1767715838599,-728.94,0.00013698,2]
[400556388,1767715838609,-728.94,0.00013698,2]
[400556390,1767715838618,-728.94,0.00013698,2]
[400556392,1767715838627,-728.94,0.00013698,2]
[400556394,1767715838636,-728.94,0.00013698,2]
[400556396,1767715838646,-728.94,0.00013698,2]
[400556398,1767715838655,-728.94,0.00013698,2]
[400556400,1767715838664,-728.94,0.00013698,2]
[400556402,1767715838675,-728.94,0.00013698,2]
[400556403,1767715838685,-728.94,0.00013698,2]
[400556405,1767715838694,-728.94,0.00013698,2]
[400556407,1767715838703,-728.94,0.00013698,2]
[400556409,1767715838713,-728.94,0.00013698,2]
[400556411,1767715838722,-728.94,0.00013698,2]
[400556413,1767715838731,-728.94,0.00013698,2]
[400556415,1767715838740,-728.94,0.00013698,2]
[400556418,1767715838750,-729.06,0.00013698,2]
[400556419,1767715838759,-500.0,0.00013698,2]
[400556421,1767715838768,-500.0,0.00013698,2]
[400556423,1767715838778,-500.0,0.00013698,2]
[400556425,1767715838787,-500.0,0.00013698,2]
[400556427,1767715838796,-500.0,0.00013698,2]
[400556429,1767715838805,-500.0,0.00013698,2]
[400556431,1767715838815,-500.0,0.00013698,2]
[400556433,1767715838824,-659.37,0.00013698,2]
[400556435,1767715838833,-659.37,0.00013698,2]
[400556437,1767715838843,-631.89,0.00013698,2]
[400556439,1767715838852,-659.40437694,0.00013698,2]
[400556441,1767715838861,-631.89,0.00013698,2]
[400556443,1767715838870,-631.89,0.00013698,2]
[400556445,1767715838880,-631.89,0.00013698,2]
[400556447,1767715838889,-631.89,0.00013698,2]
[400556449,1767715838899,-631.89,0.00013698,2]
[400556451,1767715838908,-631.89,0.00013698,2]
[400556453,1767715838918,-631.89,0.00013698,2]
[400556455,1767715838927,-631.89,0.00013698,2]
[400556457,1767715838936,-631.89,0.00013698,2]
[400556459,1767715838946,-631.89,0.00013698,2]
[400556461,1767715838955,-631.89,0.00013698,2]
[400556463,1767715838965,-631.89,0.00013698,2]
[400556465,1767715838974,-631.89,0.00013698,2]
[400556467,1767715838984,-631.89,0.00013698,2]
[400556469,1767715838993,-631.89,0.00013698,2]
[400556471,1767715839003,-631.89,0.00013698,2]
[400556473,1767715839013,-631.89,0.00013698,2]
[400556475,1767715839023,-631.89,0.00013698,2]
[400556477,1767715839033,-631.89,0.00013698,2]
[400556479,1767715839043,-631.89,0.00013698,2]
[400556481,1767715839053,-513.04283332,0.00013698,2]
[400556483,1767715839063,-500.0,0.00013698,2]
[400556485,1767715839074,-500.0,0.00013698,2]
[400556487,1767715839083,-500.0,0.00013698,2]
[400556489,1767715839093,-466.89772029,0.00013698,2]
[400556491,1767715839103,-501.64231058,0.00013699,2]
[400556493,1767715839112,-500.71714379,0.00013699,2]
[400556495,1767715839122,-500.0,0.00013699,2]
[400556497,1767715839132,-500.0,0.00013699,2]
[400556499,1767715839142,-500.73288358,0.00013699,2]
[400556501,1767715839152,-500.54648237,0.00013699,2]
[400556503,1767715839161,-501.57510488,0.00013699,2]
[400556505,1767715839171,-500.86295152,0.00013699,2]
[400556506,1767715839184,-220.37131177,0.00013699,2]
[400556508,1767715839195,-500.73320513,0.00013699,2]
[400556511,1767715839206,-500.0,0.00013699,2]
[400556512,1767715839216,-500.6911085,0.00013699,2]
[400556515,1767715839227,-351.22077635,0.00013699,2]
[400556516,1767715839237,-564.14853486,0.00013821,2]
[400556518,1767715839247,-500.0,0.00013868,2]
[400556520,1767715839256,-500.0,0.00013868,2]
[400556522,1767715839266,-300.0,0.00013869,2]
[400556524,1767715839276,-300.0,0.00013869,2]
[400556526,1767715839285,-300.0,0.00013869,2]
[400556528,1767715839294,-300.0,0.00013869,2]
[400556530,1767715839305,-300.0,0.00013869,2]
[400556532,1767715839315,-300.0,0.00013869,2]
[400556534,1767715839325,-300.0,0.00013869,2]
[400556536,1767715839335,-300.0,0.00013869,2]
[400556538,1767715839345,-300.0,0.00013869,2]
[400556540,1767715839356,-300.0,0.00013869,2]
[400556542,1767715839365,-300.0,0.00013869,2]
[400556544,1767715839375,-300.0,0.00013869,2]
[400556546,1767715839384,-300.0,0.00013869,2]
[400556548,1767715839394,-300.0,0.00013869,2]
[400556550,1767715839403,-300.0,0.00013869,2]
[400556552,1767715839412,-600.0,0.00013869,2]
[400556554,1767715839421,-271.36972202,0.0001407,2]
[400556556,1767715839430,-184.14198395,0.00014175,2]
[400556558,1767715839440,-246.56811351,0.00014175,2]
[400556560,1767715839450,-500.0,0.00014247,2]
[400556562,1767715839459,-639.63755637,0.00014247,2]
[400556564,1767715839470,-327.40695265,0.00014784,2]
[400556566,1767715839479,-1041.66666667,0.0001481,2]
[400556568,1767715839489,-404.83,0.00014968,2]
[400556570,1767715839498,-1000.0,0.00015,2]
[400556572,1767715839508,-252.116519,0.00015068,2]
[400556574,1767715839517,-720.0,0.00015256,2]
[400556576,1767715839527,-1600.40102866,0.00015895,2]
[400556578,1767715839536,-475.0,0.00015917,2]
[400556580,1767715839545,-475.0,0.00015917,2]
[400556582,1767715839554,-475.0,0.00015917,2]
[400556584,1767715839563,-475.0,0.00015917,2]
[400556586,1767715839572,-475.0,0.00015917,2]
[400556588,1767715839582,-475.0,0.00015917,2]
[400556590,1767715839591,-475.0,0.00015917,2]
[400556592,1767715839602,-475.0,0.00015917,2]
[400556594,1767715839612,-475.0,0.00015917,2]
[400556596,1767715839621,-475.0,0.00015917,2]
[400556597,1767715839631,-475.0,0.00015917,2]
[400556600,1767715839641,-475.0,0.00015917,2]
[400556602,1767715839650,-475.0,0.00015917,2]
[400556604,1767715839660,-475.0,0.00015917,2]
[400556606,1767715839670,-475.0,0.00015917,2]
[400556607,1767715839680,-475.0,0.00015917,2]
[400556610,1767715839690,-475.0,0.00015917,2]
[400556612,1767715839699,-475.0,0.0001601,2]
[400556613,1767715839709,-475.0,0.0001602,2]
[400556615,1767715839718,-1000.0,0.0001602,2]
[400556617,1767715839727,-1000.0,0.0001602,2]
[400556619,1767715839736,-1000.0,0.0001602,2]
[400556621,1767715839745,-1000.0,0.0001602,2]
[400556623,1767715839755,-1000.0,0.0001602,2]
[400556625,1767715839764,-1000.0,0.0001602,2]
[400556627,1767715839773,-1000.0,0.0001602,2]
[400556629,1767715839782,-1000.0,0.0001602,2]
[400556631,1767715839791,-1000.0,0.0001602,2]
[400556633,1767715839800,-2000.0,0.0001603,2]
[400556635,1767715839810,-2000.0,0.0001603,2]
[400556637,1767715839820,-952.066,0.0001603,2]
[400556639,1767715839830,-500.0,0.00016048,2]
[400556642,1767715839840,-500.0,0.00016048,2]
[400556643,1767715839849,-500.0,0.00016049,2]
[400556645,1767715839859,-517.68766378,0.00016049,2]
[400556647,1767715839869,-743.80362997,0.00016049,2]
[400556649,1767715839878,-743.80362997,0.00016049,2]
[400556651,1767715839888,-500.0,0.00016049,2]
[400556653,1767715839897,-743.80362997,0.00016049,2]
[400556655,1767715839906,-743.80362997,0.00016049,2]
[400556657,1767715839915,-500.0,0.00016049,2]
[400556659,1767715839924,-475.59035194,0.00016049,2]
[400556661,1767715839933,-743.80362997,0.00016049,2]
[400556663,1767715839943,-500.0,0.00016049,2]
[400556665,1767715839952,-743.80362997,0.00016049,2]
[400556667,1767715839961,-743.80362997,0.00016049,2]
[400556669,1767715839971,-743.80362997,0.00016049,2]
[400556671,1767715839980,-743.80362997,0.00016049,2]
[400556673,1767715839989,-743.80362997,0.00016049,2]
[400556675,1767715839999,-743.80362997,0.00016049,2]
[400556677,1767715840008,-743.80362997,0.00016049,2]
[400556679,1767715840019,-743.80362997,0.00016049,2]
[400556681,1767715840028,-743.80362997,0.00016049,2]
[400556683,1767715840038,-748.17894544,0.00016049,2]
[400556685,1767715840047,-748.17894544,0.00016049,2]
[400556687,1767715840057,-748.17894544,0.00016049,2]
[400556689,1767715840069,-748.17894544,0.00016049,2]
[400556691,1767715840079,-748.17894544,0.00016049,2]
[400556693,1767715840089,-748.17894544,0.00016049,2]
[400556694,1767715840105,-748.17894544,0.00016049,2]
[400556695,1767715840114,-748.17894544,0.00016049,2]
[400556696,1767715840124,-818.94420403,0.00016049,2]
[400556697,1767715840134,-818.94420403,0.00016049,2]
[400556698,1767715840146,-818.94420403,0.00016049,2]
[400556699,1767715840156,-818.94420403,0.00016049,2]
[400556700,1767715840165,-818.94420403,0.00016049,2]
[400556701,1767715840175,-818.94420403,0.00016049,2]
[400556702,1767715840186,-859.89141424,0.00016049,2]
[400556703,1767715840197,-307.28630287,0.0001607,2]
[400556704,1767715840206,-475.0,0.000161,2]
[400556705,1767715840216,-475.0,0.000161,2]
[400556706,1767715840226,-475.0,0.00016191,2]
[400556707,1767715840236,-475.0,0.00016191,2]
[400556708,1767715840245,-423.13587165,0.00016253,4]
[400556709,1767715840255,-417.0,0.00016363,2]
[400556710,1767715840267,-4937.25111182,0.00016584,2]
[400556711,1767715840276,-864.0,0.00016781,2]
[400556712,1767715840286,-500.0,0.0001695,2]
[400556714,1767715840295,-500.0,0.0001695,2]
[400556716,1767715840304,-2145.0,0.00017351,2]
[400556718,1767715840313,-1365.0,0.00017351,2]
[400556720,1767715840323,-628.0,0.00017351,2]
[400556722,1767715840332,-531.71898507,0.00017722,7]
[400556724,1767715840342,-343.20288372,0.0001807,2]
[400556726,1767715840351,-1000.0,0.0001846,2]
[400556729,1767715840361,-252.116519,0.00018493,2]
[400556730,1767715840370,-303.42779344,0.000189,2]
[400556732,1767715840380,-303.42779344,0.00019089,2]
[400556734,1767715840389,-2000.0,0.00019105,3]
[400556737,1767715840398,-2000.0,0.00019113,3]
[400556738,1767715840407,-2000.0,0.00019122,3]
[400556740,1767715840418,-229.0,0.00019123,3]
[400556742,1767715840427,-2000.0,0.00019131,3]
[400556744,1767715840437,-2000.0,0.0001914,3]
[400556747,1767715840446,-2000.0,0.00019149,3]
[400556748,1767715840455,-2000.0,0.00019157,3]
[400556750,1767715840464,-2000.0,0.00019166,3]
[400556752,1767715840473,-500.0,0.00019174,2]
[400556754,1767715840482,-500.0,0.00019174,2]
[400556756,1767715840491,-2000.0,0.00019175,3]
[400556758,1767715840500,-900.0,0.00019178,2]
[400556760,1767715840509,-2000.0,0.00019184,3]
[400556762,1767715840518,-2000.0,0.00019193,3]
[400556764,1767715840527,-151.31,0.000192,2]
[400556766,1767715840537,-160.02,0.000192,2]
[400556768,1767715840547,-2000.0,0.00019201,3]
[400556770,1767715840556,-2000.0,0.0001921,3]
[400556772,1767715840565,-2000.0,0.00019219,3]
[400556774,1767715840574,-2000.0,0.00019219,3]
[400556776,1767715840583,-303.42779344,0.00019278,2]
[400556778,1767715840593,-162.0,0.0001941,2]
[400556780,1767715840603,-303.42779344,0.00019467,2]
[400556783,1767715840612,-303.42779344,0.00019656,2]
[400556785,1767715840622,-648.93473211,0.00019726,2]
[400556787,1767715840632,-745.0,0.00019745,2]
[400556788,1767715840641,-455.14169016,0.00019845,4]
[400556790,1767715840651,-4937.25111182,0.00019995,2]
[400556793,1767715840660,-605.94932461,0.00020034,4]
[400556794,1767715840670,-379.11946458,0.0002007,2]
[400556810,1767715840810,-1000.0,0.00020306,2]
[400556812,1767715840820,-244.0,0.00020306,2]
[400556814,1767715840830,-2145.0,0.00020351,2]
[400556816,1767715840839,-1365.0,0.00020351,2]
[400556818,1767715840848,-628.0,0.00020351,2]
[400556820,1767715840858,-782.31839172,0.00020659,13]
[400556822,1767715840867,-472.44012806,0.00020999,2]
[400556824,1767715840876,-500.0,0.00020999,2]
[400556826,1767715840885,-3000.0,0.00021,2]
[400556828,1767715840894,-3000.0,0.0002101,2]
[400556830,1767715840903,-3000.0,0.0002102,2]
[400556832,1767715840912,-3000.0,0.0002103,2]
[400556834,1767715840921,-5554.429529,0.0002104,2]
[400556836,1767715840931,-1690.33,0.000211,2]
[400556838,1767715840940,-180.0,0.00021315,4]
[400556840,1767715840949,-449.0,0.000214,2]
[400556842,1767715840959,-252.116519,0.00021918,2]
[400556844,1767715840968,-100000.0,0.0002199,2]
[400556846,1767715840977,-2335.66,0.00022,7]
[400556848,1767715840987,-212.54773642,0.00022027,2]
[400556850,1767715840996,-500.0,0.00022027,2]
[400556852,1767715841005,-500.0,0.00022027,2]
[400556854,1767715841015,-500.0,0.00022027,2]
[400556856,1767715841024,-500.0,0.00022027,2]
[400556857,1767715841034,-500.0,0.00022027,2]
[400556859,1767715841043,-500.0,0.00022027,2]
[400556861,1767715841052,-500.0,0.00022027,2]
[400556863,1767715841062,-500.0,0.00022027,2]
[400556866,1767715841071,-415.03604543,0.0002207,2]
[400556868,1767715841080,-719.13,0.000221,2]
[400556870,1767715841089,-15617.11,0.000221,2]
[400556872,1767715841098,-922.54490814,0.00022128,15]
[400556873,1767715841109,-1000.0,0.00022336,10]
[400556875,1767715841118,-492.0,0.00022336,10]
[400556877,1767715841128,-300.0,0.00022466,2]
[400556879,1767715841137,-564.0,0.00023,7]
[400556881,1767715841146,-450.0,0.00023014,2]
[400556883,1767715841156,-800.0,0.00023172,2]
[400556886,1767715841165,-500.0,0.0002318,2]
[400556888,1767715841174,-800.0,0.00023198,2]
[400556890,1767715841186,-151.31,0.000232,7]
[400556891,1767715841196,-160.02,0.000232,7]
[400556893,1767715841204,-800.0,0.0002323,2]
[400556895,1767715841213,-800.0,0.00023285,2]
[400556897,1767715841222,-564.0,0.00023288,7]
[400556899,1767715841234,-500.0,0.00023309,2]
[400556901,1767715841243,-2145.0,0.00023351,2]
[400556903,1767715841251,-1365.0,0.00023351,2]
[400556906,1767715841262,-628.0,0.00023351,2]
[400556907,1767715841271,-4937.25111182,0.00023407,2]
[400556910,1767715841280,-800.0,0.00023504,2]
[400556912,1767715841289,-182.0,0.00023507,10]
[400556914,1767715841298,-564.0,0.00023562,7]
[400556916,1767715841308,-600.0,0.00023562,2]
[400556918,1767715841317,-1071.83356685,0.00023597,18]
[400556920,1767715841326,-800.0,0.00023649,2]
[400556921,1767715841336,-800.0,0.0002371,2]
[400556924,1767715841346,-800.0,0.00023732,2]
[400556926,1767715841356,-151.0,0.00023835,2]
[400556927,1767715841365,-564.0,0.00023836,7]
[400556929,1767715841374,-800.0,0.00023836,2]
[400556932,1767715841383,-800.0,0.00023933,2]
[400556934,1767715841393,-800.0,0.00023942,2]
[400556935,1767715841403,-800.0,0.00023951,2]
[400556938,1767715841413,-800.0,0.00024013,2]
[400556939,1767715841422,-800.0,0.00024021,2]
[400556941,1767715841431,-450.95262629,0.0002407,2]
[400556943,1767715841441,-564.0,0.0002411,7]
[400556944,1767715841450,-750.0,0.0002411,2]
[400556946,1767715841459,-564.0,0.00024164,7]
[400556948,1767715841468,-800.0,0.00024167,2]
[400556950,1767715841478,-800.0,0.00024195,2]
[400556952,1767715841487,-2335.66,0.000242,7]
[400556954,1767715841496,-800.0,0.00024202,2]
[400556956,1767715841505,-800.0,0.00024248,2]
[400556958,1767715841514,-500.0,0.00024254,2]
[400556960,1767715841523,-800.0,0.00024267,2]
[400556962,1767715841532,-500.0,0.00024317,2]
[400556964,1767715841543,-800.0,0.00024323,2]
[400556966,1767715841552,-564.0,0.00024384,7]
[400556968,1767715841561,-800.0,0.00024394,2]
[400556970,1767715841570,-1690.33,0.000244,14]
[400556972,1767715841579,-800.0,0.00024425,2]
[400556974,1767715841590,-800.0,0.00024445,2]
[400556976,1767715841599,-800.0,0.00024486,2]
[400556978,1767715841610,-1000.0,0.0002457,10]
[400556980,1767715841620,-791.0,0.0002457,10]
[400556982,1767715841629,-800.0,0.00024593,2]
[400556984,1767715841639,-430.39814706,0.00024658,2]
[400556986,1767715841648,-417.0,0.00024658,2]
[400556988,1767715841657,-800.0,0.00024713,2]
[400556990,1767715841669,-800.0,0.00024785,2]
[400556992,1767715841678,-417.0,0.00024795,2]
[400556994,1767715841687,-11411.76248932,0.00024832,2]
[400556996,1767715841696,-500.0,0.00024873,2]
[400556997,1767715841705,-500.0,0.00024873,2]
[400556998,1767715841714,-500.0,0.00024873,2]
[400556999,1767715841723,-500.0,0.00024873,2]
[400557000,1767715841733,-500.0,0.00024873,2]
[400557001,1767715841742,-500.0,0.00024873,2]
[400557002,1767715841751,-500.0,0.00024873,2]
[400557003,1767715841760,-500.0,0.00024873,2]
[400557004,1767715841769,-500.0,0.00024873,2]
[400557005,1767715841778,-500.0,0.00024873,2]
[400557006,1767715841787,-500.0,0.00024873,2]
[400557007,1767715841797,-500.0,0.00024873,2]
[400557008,1767715841805,-500.0,0.00024873,2]
[400557009,1767715841814,-500.0,0.00024873,2]
[400557010,1767715841823,-500.0,0.00024873,2]
[400557011,1767715841833,-500.0,0.00024873,2]
[400557012,1767715841842,-511.14869574,0.00024873,2]
[400557013,1767715841851,-640933.194876,0.000249,2]
[400557014,1767715841861,-417.0,0.00024932,2]
[400557015,1767715841870,-240.909,0.00025,8]
[400557016,1767715841879,-15617.11,0.00025,2]
[400557017,1767715841888,-166.0,0.00025,7]
[400557018,1767715841897,-500.0,0.00025041,7]
[400557019,1767715841906,-1229.66433142,0.00025066,21]
[400557020,1767715841915,-151.0,0.00025068,2]
[400557021,1767715841924,-417.0,0.00025069,2]
[400557022,1767715841933,-1019.0,0.000251,2]
[400557023,1767715841942,-1264.20106546,0.00025121,7]
[400557024,1767715841951,-564.0,0.00025131,7]
[400557025,1767715841960,-250.0,0.00025205,2]
[400557026,1767715841969,-417.0,0.00025206,2]
[400557027,1767715841978,-252.116519,0.00025342,2]
[400557028,1767715841987,-417.0,0.00025343,2]
[400557029,1767715841997,-566.0,0.00025373,7]
[400557030,1767715842006,-417.0,0.0002548,2]
[400557031,1767715842015,-151.31,0.000255,7]
[400557032,1767715842024,-160.02,0.000255,7]
[400557033,1767715842034,-417.0,0.00025617,2]
[400557034,1767715842043,-184.0,0.00025699,17]
[400557035,1767715842053,-350.0,0.00025753,2]
[400557036,1767715842062,-417.0,0.00025754,2]
[400557037,1767715842071,-417.0,0.00025891,2]
[400557038,1767715842080,-501.31876826,0.00026027,5]
[400557039,1767715842090,-417.0,0.00026028,2]
[400557040,1767715842099,-486.86920714,0.0002607,2]
[400557041,1767715842110,-564.0,0.00026098,7]
[400557042,1767715842119,-564.0,0.00026098,7]
[400557043,1767715842128,-2874.83428113,0.000261,7]
[400557044,1767715842137,-1019.0,0.000261,2]
[400557045,1767715842147,-417.0,0.00026165,2]
[400557046,1767715842156,-11411.7624893,0.00026199,2]
[400557047,1767715842165,-2436.38343228,0.00026256,2]
[400557048,1767715842175,-2335.66,0.000263,7]
[400557049,1767715842184,-151.0,0.00026301,2]
[400557050,1767715842196,-450.0,0.00026301,2]
[400557051,1767715842206,-2145.0,0.00026351,2]
[400557052,1767715842215,-1365.0,0.00026351,2]
[400557053,1767715842225,-628.0,0.00026351,2]
[400557054,1767715842235,-2436.38343228,0.00026428,2]
[400557055,1767715842245,-1395.59765423,0.00026535,24]
[400557056,1767715842254,-1690.33,0.000267,14]
[400557057,1767715842265,-2436.38343228,0.00026807,2]
[400557058,1767715842274,-4937.25111182,0.00026819,2]
[400557059,1767715842283,-564.0,0.00026822,7]
[400557060,1767715842292,-550.0,0.00026849,2]
[400557061,1767715842301,-719.13,0.000269,2]
[400557062,1767715842311,-2436.38343228,0.00026901,2]
[400557063,1767715842320,-1000.0,0.00027027,30]
[400557064,1767715842329,-607.0,0.00027027,30]
[400557065,1767715842339,-564.0,0.00027064,7]
[400557066,1767715842347,-156.04,0.00027076,2]
[400557067,1767715842359,-15617.11,0.000271,2]
[400557068,1767715842368,-250.0,0.000271,7]
[400557069,1767715842377,-250.0,0.000271,7]
[400557070,1767715842386,-250.0,0.000271,7]
[400557071,1767715842395,-250.0,0.000271,7]
[400557072,1767715842404,-250.0,0.000271,7]
[400557073,1767715842414,-250.0,0.000271,7]
[400557074,1767715842423,-206.8,0.000271,7]
[400557076,1767715842433,-1019.0,0.000271,2]
[400557078,1767715842442,-2436.38343228,0.00027291,2]
[400557080,1767715842452,-223.81332617,0.00027397,2]
[400557081,1767715842461,-156.66932831,0.00027397,2]
[400557083,1767715842471,-1825.86,0.00027397,2]
[400557084,1767715842481,-650.0,0.00027397,5]
[400557085,1767715842490,-153.720433,0.00027397,7]
[400557086,1767715842499,-500.0,0.00027397,5]
[400557088,1767715842509,-514.72943371,0.00027397,5]
[400557090,1767715842519,-2436.38343228,0.0002743,2]
[400557092,1767715842528,-10000.0,0.00027533,25]
[400557094,1767715842537,-151.0,0.00027534,2]
[400557097,1767715842547,-564.0,0.00027547,14]
[400557099,1767715842557,-11411.7624893,0.00027566,2]
[400557101,1767715842566,-2436.38343228,0.00027806,2]
[400557102,1767715842575,-155.0,0.0002789,26]
[400557103,1767715842584,-750.0,0.00027945,5]
[400557104,1767715842593,-1000.0,0.00027945,5]
[400557105,1767715842603,-250.0,0.00027945,5]
[400557106,1767715842612,-250.0,0.00027945,5]
[400557107,1767715842622,-2436.38343228,0.00027959,2]
[400557108,1767715842631,-151.31,0.00028,7]
[400557109,1767715842640,-160.02,0.00028,7]
[400557110,1767715842649,-2724.453066,0.00028,2]
[400557111,1767715842659,-1569.25562125,0.00028004,26]
[400557112,1767715842668,-564.0,0.00028031,14]
[400557113,1767715842677,-522.785788,0.0002807,2]
[400557114,1767715842686,-2335.66,0.000281,7]
[400557115,1767715842696,-1019.0,0.000281,2]
[400557116,1767715842705,-564.0,0.00028272,14]
[400557117,1767715842714,-10000.0,0.00028299,11]
[400557118,1767715842723,-10000.0,0.0002839,27]
[400557119,1767715842732,-1690.33,0.000284,14]
[400557120,1767715842741,-2436.38343228,0.00028457,2]
[400557121,1767715842751,-850.0,0.00028493,5]
[400557122,1767715842760,-1344.52633851,0.00028493,5]
[400557123,1767715842769,-350.0,0.00028493,5]
[400557124,1767715842778,-350.0,0.00028493,5]
[400557125,1767715842787,-1500.0,0.000285,2]
[400557127,1767715842796,-2000.0,0.00028525,7]
[400557129,1767715842805,-401.97018792,0.000287,4]
[400557130,1767715842814,-2436.38343228,0.00028704,2]
[400557131,1767715842823,-10000.0,0.00028766,10]
[400557132,1767715842835,-10000.0,0.00028766,4]
[400557133,1767715842845,-10000.0,0.00028766,30]
[400557134,1767715842854,-151.0,0.00028767,3]